[Event "55th Iranian-ch Men Final 2022"]
[Site "Iran"]
[Date "2022.06.17"]
[Round "4.4"]
[White "Khamisi, S Jafar"]
[Black "Tahbaz, Arash"]
[Result "1-0"]
[ECO "B62"]
[WhiteElo "2118"]
[BlackElo "2451"]
[Annotator "TA"]
[PlyCount "80"]
[EventDate "2022.06.15"]
[EventType "tourn"]
[EventCountry "IRI"]
[SourceTitle "playchess.com"]
[Source "ChessBase"]
[SourceQuality "1"]
[TimeControl "40/5400+30:1800+30"]

{[%evp 12,80,27,31,46,30,28,37,38,39,31,44,25,29,27,32,27,29,32,39,37,50,50,31,70,69,67,63,104,68,84,72,102,43,75,67,79,78,83,68,185,187,172,162,147,118,103,97,196,181,191,202,194,181,292,256,739,14,22,0,677,0,398,387,29973,29976,29985,29986,29987,29987,29997]} 1. e4 {[%emt 0:00:03]} c5 {[%emt 0:02:56]} 2. Nf3 {[%emt 0:00:12][%cal Bg1f3,Bf3d4,Bd4b5][%mdl 32]} d6 {[%emt 0:01:38]} 3. d4 {[%emt 0:00:15]} cxd4 {[%emt 0:00:06]} 4. Nxd4 {[%emt 0:00:10]} Nf6 {[%emt 0:00:05]} 5. Nc3 {[%emt 0:00:10]} Nc6 {[%emt 0:00:45]} 6. Bg5 {[%emt 0:00:24]} e6 {[%emt 0:00:09]} 7. Qd3 {[%emt 0:01:02]} Bd7 {[%emt 0:00:34] Nowadays more popular than 7...a6. B62: Sicilian: Richter-Rauzer: 6...e6: Unusual White 7th moves.} 8. Ndb5 {[%emt 0:01:04]} (8. O-O-O $5 {[%cal Rd4b5]}) 8... Nb4 {[%emt 0:01:38]} 9. Qd1 {[%emt 0:02:10]} a6 {[%emt 0:00:02] White is slightly better.} 10. Bxf6 {[%emt 0:02:33]} gxf6 {[%emt 0:00:10]} 11. a3 {[%emt 0:00:06]} Nxc2+ {[%emt 0:00:21]} 12. Qxc2 {[%emt 0:00:08]} axb5 {[%emt 0:00:03]} 13. Bxb5 {[%emt 0:00:15]} Bxb5 {[%emt 0:00:04]} 14. Nxb5 {[%emt 0:00:13] Nc7+ is the strong threat.} Qa5+ {[%emt 0:00:02]} 15. Nc3 {[%emt 0:00:19]} Bg7 {[%emt 0:00:03]} 16. O-O {[%emt 0:01:04][%cal Bh1f1,Bf1d1,Bd1d3,Bd3f3][%mdl 32]} O-O {[%emt 0:00:03] [#]} 17. Rfd1 $146 {[%emt 0:04:41]} ({Predecessor:} 17. Rad1 Rfc8 18. Rxd6 f5 19. exf5 Bxc3 20. bxc3 Qxf5 21. Rd3 Rxa3 22. Rg3+ Kf8 23. Qd2 {1-0 (32) Ganguly,S (2609)-Gupta,A (2628) chess24.com INT 2022}) 17... Qb6 {[%emt 0:00:44]} 18. Rd3 {[%emt 0:00:44]} Rfd8 {[%emt 0:00:08]} 19. Rad1 {[%emt 0:01:17]} Ra5 {[%emt 0:00:32]} 20. Rf3 {[%emt 0:15:04] Against f5} (20. Qd2 {looks sharper.} Rg5 21. h4 Rg4 22. Rxd6 Rxd6 23. Qxd6 Qxb2 24. Qd8+) 20... Re5 {[%emt 0:09:55]} 21. h3 {[%emt 0:10:46][%cal Bh2h3,Bh3h4][%mdl 32]} Qc5 22. a4 {[%emt 0:09:02]} (22. Qd2 $16) 22... h6 23. Rd2 {[%emt 0:05:18]} Rd7 24. Qd1 {[%emt 0:45:30]} Qb6 {[%emt 1:22:32]} 25. h4 {[%emt 0:00:00]} Qb4 {[%emt 0:00:00]} ({Black should play} 25... Qd8 $14) 26. Rg3 $18 {[%emt 0:00:00]} f5 {[%emt 0:00:00]} 27. exf5 {[%emt 0:00:00]} exf5 {[%emt 0:00:00]} 28. Nd5 {[%emt 0:00:00] Against Rde7} Qxh4 {[%emt 0:00:00] [#]} 29. Rd4 $1 {[%emt 0:00:00]} Qd8 {[%emt 0:00:00] [#]} (29... f4 $16 {is a better defense.}) 30. f4 $1 {[%emt 0:00:51]} Re6 {[%emt 0:00:00]} 31. Qh5 {[%emt 0:00:27] Against Qh4} Kh8 {[%emt 0:00:00]} 32. Rdd3 {[%emt 0:00:25]} Qa5 {[%emt 0:00:00]} (32... Bxb2 {was necessary.} 33. Qxf5 Qh4) 33. Qxf5 {[%emt 0:00:43] Threatens to win with Qg4.} Qxa4 $2 {[%emt 0:00:00]} (33... Qd8 34. Rg4 Bxb2) 34. Qg4 $2 {[%emt 0:01:10]} ({White should try} 34. Ra3 $18 Qd4+ 35. Kh2) 34... Rg6 $11 {[%emt 0:00:00]} 35. Qf5 $40 {[%emt 0:01:06][%mdl 8320] White attacks. Active counter play!} (35. Qh3 $11) 35... Re6 $1 $18 {[%emt 0:04:30]} 36. Qg4 $2 {[%emt 0:00:45]} (36. Ra3 $18 Qd4+ 37. Kh2) 36... f5 $2 {[%emt 0:00:48][%mdl 8192]} (36... Rg6 $11 37. Qf5 Rxg3 38. Rxg3 Rd8) 37. Qxf5 {[%emt 0:00:16] Chess con chili.} Qa1+ $2 {[%emt 0:00:02]} (37... Qe4 $18 38. Qh3 (38. Qxe4 Rxe4 39. Rd2 Re1+ 40. Kf2 Rh1 $16) 38... Qe1+ 39. Kh2 Rf7) 38. Kh2 {[%emt 0:00:17] White mates.} Re1 {[%emt 0:00:01]} 39. Rge3 {[%emt 0:00:25]} Rh1+ {[%emt 0:01:37]} 40. Kg3 {[%emt 0:00:00]} Qg1 {[%emt 0:01:02] Weighted Error Value: White=0.40/Black=0.61} 1-0

[Event "55th Iranian-ch Men Final 2022"]
[Site "Iran"]
[Date "2022.06.17"]
[Round "4.5"]
[White "Daneshvar, Bardiya"]
[Black "Rastbod, Ali"]
[Result "1/2-1/2"]
[ECO "D37"]
[WhiteElo "2486"]
[BlackElo "2362"]
[Annotator "TA"]
[PlyCount "102"]
[EventDate "2022.06.15"]
[EventType "tourn"]
[EventCountry "IRI"]
[SourceTitle "playchess.com"]
[Source "ChessBase"]
[SourceQuality "1"]
[TimeControl "40/5400+30:1800+30"]

{[%evp 12,102,22,20,36,31,33,11,29,27,60,10,21,16,25,-2,-12,-20,12,16,11,16,7,12,110,51,42,27,33,-2,0,-25,-8,-15,43,66,52,33,68,33,105,105,107,102,104,100,109,100,129,123,126,131,133,139,140,124,144,139,168,156,169,168,167,136,176,172,214,164,245,235,245,243,231,211,336,332,303,229,386,363,328,225,181,0,0,0,0,0,0,0,0,0,34]} 1. Nf3 {[%emt 0:00:05]} Nf6 {[%emt 1:31:00]} 2. c4 {[%emt 0:00:08]} e6 {[%emt 0:00:00]} 3. Nc3 {[%emt 0:00:06]} d5 {[%emt 0:00:00]} 4. d4 {[%emt 0:00:10]} Be7 {[%emt 0:00:00]} 5. Bf4 {[%emt 0:00:06]} O-O {[%emt 0:00:00]} 6. e3 {[%emt 0:00:05]} b6 {[%emt 0:00:00]} 7. Be2 {[%emt 0:00:52]} c5 {[%emt 0:00:00] D37: Queen's Gambit Declined: 5 Bf4.} 8. dxc5 {[%emt 0:01:28]} bxc5 {[%emt 0:00:00]} 9. cxd5 {[%emt 0:01:30]} exd5 {[%emt 0:00:00]} 10. O-O {[%emt 0:03:33]} Be6 {[%emt 0:00:00]} 11. Nb5 {[%emt 0:14:45] [#]} (11. Ne5 $14) 11... Na6 $146 {[%emt 0:00:00]} ({Predecessor:} 11... Nc6 12. Ne5 Qb6 13. Nxc6 Qxc6 14. Nc7 Rac8 15. Nxe6 fxe6 16. Rc1 Rfe8 17. Qb3 Qb6 18. Qxb6 axb6 {1-0 (60) Stark,L (1474)-Lukasiewicz,K (1654) Gora Sw Anny 2012}) 12. Rc1 {[%emt 0:03:35]} Qb6 {[%emt 0:00:00]} 13. b3 {[%emt 0:02:45]} (13. Nc3 $5 {[%cal Rc3a4]}) 13... Rfd8 {[%emt 0:00:00]} 14. Nc3 {[%emt 0:07:13]} Rac8 {[%emt 0:00:00]} 15. Na4 {[%emt 0:01:22]} Qb7 {[%emt 0:00:00]} 16. Bg5 {[%emt 0:00:38]} c4 {[%emt 0:00:00]} 17. Nd4 {[%emt 0:02:19]} Ne4 {[%emt 0:00:00]} (17... Nb4 $11 {keeps the balance.}) 18. Bxe7 {[%emt 0:15:14]} (18. Nxe6 $16 fxe6 19. Bxe7 Qxe7 20. bxc4) 18... Qxe7 $14 {[%emt 0:00:00]} 19. Nxe6 {[%emt 0:05:02]} Qxe6 {[%emt 0:00:00]} ({But not} 19... fxe6 20. bxc4 Nb4 21. cxd5 Nxd5 22. Rxc8 Rxc8 23. Qd4 $16) 20. Qe1 {[%emt 0:07:12] Prevents Nb4.} (20. Qd4 $5 {[%cal Rb3c4]}) 20... Nac5 {[%emt 0:00:00]} 21. Qb4 {[%emt 0:04:48]} Nxa4 {[%emt 0:00:00]} 22. Qxa4 {[%emt 0:00:45]} c3 {[%emt 0:00:00]} (22... cxb3 $11 23. axb3 Nc3) 23. Qd4 {[%emt 0:04:33]} Qb6 {[%emt 0:00:00]} 24. Bd3 {[%emt 0:03:44]} Ng5 {[%emt 0:03:18]} 25. Rc2 {[%emt 0:07:59]} Ne6 {[%emt 0:04:35]} ({Black should try} 25... Qxd4 $14 26. exd4 Ne6) 26. Qxb6 $16 {[%emt 0:01:07]} axb6 {[%emt 0:00:01]} 27. Rfc1 {[%emt 0:00:55]} d4 {[%emt 0:02:39]} 28. exd4 {[%emt 0:00:28]} Rxd4 {[%emt 0:00:12]} 29. Rxc3 {[%emt 0:00:51]} Rxc3 {[%emt 0:00:03]} 30. Rxc3 {[%emt 0:00:04][%mdl 4096] Endgame KRB-KRN} Nc5 {[%emt 0:00:03]} 31. Bc2 {[%emt 0:01:40]} g6 {[%emt 0:00:25]} 32. Kf1 {[%emt 0:00:56]} Kg7 {[%emt 0:00:01]} 33. a3 {[%emt 0:00:40]} Rd6 {[%emt 0:00:02]} 34. Ke2 {[%emt 0:03:27]} Ne6 {[%emt 0:00:09]} 35. Ke3 {[%emt 0:00:29]} f5 {[%emt 0:00:09]} 36. f4 {[%emt 0:00:50]} Kf6 {[%emt 0:00:21]} 37. b4 {[%emt 0:00:24]} g5 {[%emt 0:00:13]} 38. g3 {[%emt 0:02:48]} h5 {[%emt 0:00:16]} 39. Rc4 {[%emt 0:01:01]} h4 {[%emt 0:01:00]} (39... gxf4+ {was necessary.} 40. gxf4 h4) 40. fxg5+ $18 {[%emt 0:00:00]} Kxg5 {[%emt 0:00:00]} 41. gxh4+ {[%emt 0:11:59]} ({Don't take} 41. Rxh4 $6 f4+ 42. Ke4 f3) 41... Kf6 {[%emt 0:00:26]} 42. Bd3 {[%emt 0:03:41]} Ke5 {[%emt 0:01:17]} (42... Rd8 $142 43. Rc6 f4+ 44. Kd2 Ke5 45. Rxb6 Nd4) 43. h5 {[%emt 0:02:14]} f4+ {[%emt 0:11:04]} 44. Ke2 {[%emt 0:00:16]} b5 $2 {[%emt 0:03:18] [#]} (44... Nd4+ 45. Kf2 Nf5) 45. Re4+ {[%emt 0:03:08]} Kd5 {[%emt 0:00:29]} 46. Bb1 {[%emt 0:01:52] Black must now prevent h4.} Ra6 {[%emt 0:01:02]} 47. h6 $2 {[%emt 0:07:43]} ({White should play} 47. Kf2 $18) 47... Nd4+ $11 {[%emt 0:05:03][%mdl 64] [#] Discovered Attack. The position is equal.} 48. Kd1 {[%emt 0:02:54] h7 is the strong threat.} Rxh6 {[%emt 0:00:26]} 49. Rxf4 {[%emt 0:00:26] Threatens to win with h4.} Rxh2 {[%emt 0:00:03] aiming for ...Rh1+.} 50. Bd3 {[%emt 0:01:13]} Ra2 {[%emt 0:00:46]} 51. Rf8 {[%emt 0:00:59]} Ke5 {[%emt 0:17:39] Weighted Error Value: White=0.17 (very precise) /Black=0.26 (precise)} 1/2-1/2

[Event "55th Iranian-ch Men Final 2022"]
[Site "Iran"]
[Date "2022.06.17"]
[Round "4.6"]
[White "Daghli, Arash"]
[Black "Omidi, Arya"]
[Result "1/2-1/2"]
[ECO "E51"]
[WhiteElo "2441"]
[BlackElo "2321"]
[Annotator "TA"]
[PlyCount "81"]
[EventDate "2022.06.15"]
[EventType "tourn"]
[EventCountry "IRI"]
[SourceTitle "playchess.com"]
[Source "ChessBase"]
[SourceQuality "1"]
[TimeControl "40/5400+30:1800+30"]

{[%evp 10,81,0,-7,0,2,4,-7,0,0,14,16,20,12,28,11,34,20,16,0,47,65,51,55,56,89,117,12,11,4,0,0,0,0,0,0,3,0,0,0,0,0,45,38,38,33,58,60,143,143,143,145,139,131,114,66,93,0,0,-83,-79,-97,-71,-75,-87,-87,-78,-70,-80,-76,-87,-79,0,0]} 1. d4 {[%emt 0:00:30]} Nf6 {[%emt 0:01:17]} 2. c4 {[%emt 0:00:53]} e6 {[%emt 0:00:06]} 3. Nc3 {[%emt 0:00:25]} Bb4 {[%emt 0:00:03]} 4. e3 {[%emt 0:00:22]} O-O {[%emt 0:01:43]} 5. Bd2 {[%emt 0:00:34]} d5 {[%emt 0:00:29]} 6. Nf3 {[%emt 0:00:18]} Be7 {[%emt 0:03:17] E51: Nimzo-Indian: Rubinstein: 4...0-0 5 Nf3 d5.} 7. Rc1 {[%emt 0:03:56]} Nbd7 {[%emt 0:05:43]} 8. a3 {[%emt 0:12:23] [#]} Re8 $146 {[%emt 0:11:52]} ({Predecessor:} 8... c5 9. cxd5 exd5 10. Bd3 a6 11. O-O b5 12. Bb1 c4 13. e4 {½-½ (13) Berkes,F (2668)-Grigoriants,S (2571) Hungary 2015}) 9. Bd3 {[%emt 0:01:11]} c5 {[%emt 0:02:15]} 10. cxd5 {[%emt 0:01:39]} exd5 {[%emt 0:00:30]} 11. O-O {[%emt 0:07:25]} b6 {[%emt 0:07:39]} 12. Ne5 {[%emt 0:11:00]} Nxe5 {[%emt 0:12:59]} 13. dxe5 {[%emt 0:00:14]} Ng4 {[%emt 0:01:01]} 14. Bb5 {[%emt 0:00:21]} Rf8 {[%emt 0:15:03]} (14... Bd7 $11 {deserves consideration.}) 15. Bc6 $14 {[%emt 0:02:04][%csl LRa8,LRd5]} Rb8 {[%emt 0:00:02]} 16. f4 {[%emt 0:04:59]} ({Much worse is} 16. Nxd5 Nxe5 17. Nxe7+ Qxe7 $15) 16... d4 {[%emt 0:00:35]} 17. Nd5 {[%emt 0:00:29]} dxe3 {[%emt 0:01:00]} 18. Bxe3 {[%emt 0:13:42]} ({Weaker is} 18. Nxe3 Qd4 19. Qe2 Rd8 $15) (18. Bc3 $1 $16) 18... Be6 $11 {[%emt 0:05:37]} 19. Nxe7+ {[%emt 0:10:07]} Qxe7 {[%emt 0:02:11]} 20. Qf3 {[%emt 0:07:24]} f6 {[%emt 0:03:10]} 21. h3 {[%emt 0:06:00]} Nxe3 {[%emt 0:01:31]} 22. Qxe3 {[%emt 0:00:02]} Qc7 {[%emt 0:01:55]} 23. Be4 {[%emt 0:01:44] f5 is the strong threat.} fxe5 {[%emt 0:00:20]} 24. fxe5 {[%emt 0:01:39]} Kh8 {[%emt 0:03:46]} 25. Bc2 {[%emt 0:01:30][%cal Be4c2,Bc2a4,Ba4b5][%mdl 32]} Bg8 {[%emt 0:00:39]} 26. Rxf8 {[%emt 0:02:14]} Rxf8 {[%emt 0:00:04]} 27. e6 {[%emt 0:01:04] Strongly threatening e7.} Qe7 {[%emt 0:03:03]} 28. Re1 {[%emt 0:01:47]} c4 {[%emt 0:04:53] [#]} ({Black should try} 28... Rd8 $14) 29. Ba4 $1 $16 {[%emt 0:01:21]} h6 {[%emt 0:04:49]} 30. Bb5 {[%emt 0:02:17]} Rc8 {[%emt 0:01:59][%cal Bf8c8,Bc8c5,Bc5g5,Bg5e5,Be5e1][%mdl 32]} (30... Bxe6 $2 31. Bxc4 Rf4 32. Bxe6 $18) 31. Bd7 {[%emt 0:00:01]} Rc5 {[%emt 0:00:28]} 32. Rf1 {[%emt 0:01:57]} (32. a4 $16) 32... Rg5 {[%emt 0:00:27]} 33. Qf4 {[%emt 0:03:41] 0x0.000861136f46dp-1022s more active pieces.} (33. Rd1 $16) 33... Qc5+ $1 $11 {[%emt 0:01:08]} 34. Rf2 {[%emt 0:00:56]} (34. Qf2 $11 {remains equal.} Qd6 35. Re1) 34... Re5 $17 {[%emt 0:00:31]} 35. Qf8 {[%emt 0:00:35]} Re1+ {[%emt 0:01:26]} 36. Kh2 {[%emt 0:00:07]} Qe5+ {[%emt 0:00:10]} 37. Qf4 {[%emt 0:01:29]} Bxe6 {[%emt 0:01:29]} 38. Qxe5 {[%emt 0:00:37]} Rxe5 {[%emt 0:00:06]} 39. Rf8+ {[%emt 0:00:11] [#]} Bg8 $1 {[%emt 0:00:06]} (39... Kh7 $2 40. Re8 $18) 40. Ra8 {[%emt 0:00:00]} a5 {[%emt 0:00:00]} (40... g5 $17 41. Bc6 Ra5) 41. Rb8 {[%emt 0:04:06] Weighted Error Value: White=0.14 (very precise) /Black=0.12 (very precise)} 1/2-1/2

[Event "55th Iranian-ch Men Final 2022"]
[Site "Iran"]
[Date "2022.06.17"]
[Round "4.7"]
[White "Poormosavi, Seyed Kian"]
[Black "Naderi, Abdollah"]
[Result "1-0"]
[ECO "B41"]
[WhiteElo "2358"]
[BlackElo "2050"]
[Annotator "TA"]
[PlyCount "122"]
[EventDate "2022.06.15"]
[EventType "tourn"]
[EventCountry "IRI"]
[SourceTitle "playchess.com"]
[Source "ChessBase"]
[SourceQuality "1"]
[TimeControl "40/5400+30:1800+30"]

{[%evp 13,122,28,63,59,59,59,62,62,68,70,66,37,70,81,129,134,136,116,118,126,139,134,127,142,139,135,156,94,87,59,93,35,33,0,50,0,8,8,167,0,0,-17,0,-47,8,-76,-20,-25,0,-86,0,-61,-14,-60,-12,-62,-31,-43,0,-44,-47,-140,-125,-181,-153,-140,-124,-121,-133,-126,-125,-154,-34,-34,-34,-34,0,0,39,24,24,24,148,148,148,148,161,148,246,269,272,258,243,227,232,219,908,869,829,819,752,714,5604,5747,6621,6414,29972,29964,29982,29983,29986]} 1. e4 {[%emt 0:04:51]} c5 {[%emt 0:00:58]} 2. Nf3 {[%emt 0:00:17]} e6 {[%emt 0:00:24]} 3. d4 {[%emt 0:00:13]} cxd4 {[%emt 0:00:15]} 4. Nxd4 {[%emt 0:00:03]} a6 {[%emt 0:00:37]} 5. c4 {[%emt 0:00:16]} Nf6 {[%emt 0:01:26]} 6. Nc3 {[%emt 0:00:12]} Qc7 {[%emt 0:04:29]} 7. a3 {[%emt 0:01:03]} d6 {[%emt 0:03:02]} 8. Be2 {[%emt 0:00:59] B41: Sicilian: Kan Variation: 5 c4.} b6 {[%emt 1:23:19]} 9. Be3 {[%emt 0:00:24]} Bb7 {[%emt 0:00:00]} 10. f3 {[%emt 0:00:24] White is slightly better.} Be7 {[%emt 0:00:00]} 11. Rc1 {[%emt 0:00:56]} O-O {[%emt 0:00:00]} 12. g4 {[%emt 0:01:22][%cal Bg2g4,Bg4g5][%mdl 32] [#]} Re8 $146 {[%emt 0:00:00]} ({Predecessor:} 12... Qd8 13. O-O Nbd7 14. g5 Nh5 15. f4 Nxf4 16. Rxf4 e5 17. Rg4 exd4 18. Qxd4 Rc8 {0-1 (51) Lupulescu,C (2499)-Predojevic,B (2462) Subotica 2003}) 13. g5 {[%emt 0:20:46]} Nh5 {[%emt 0:00:00]} (13... Nfd7 $142) 14. f4 $36 {[%emt 0:07:25][%mdl 2048] White is on the roll.} Nxf4 {[%emt 0:00:00]} 15. Bxf4 {[%emt 0:58:49]} e5 {[%emt 0:00:00]} 16. Nd5 {[%emt 0:00:30]} Bxd5 {[%emt 0:00:00]} 17. cxd5 {[%emt 0:00:00]} (17. exd5 $6 exf4 18. h4 g6 $11) 17... Qb7 {[%emt 0:00:00] [#]} 18. Bxe5 {[%emt 0:00:00][%mdl 512]} dxe5 {[%emt 0:00:00]} 19. Nf5 {[%emt 0:00:00]} Nd7 {[%emt 0:00:00][%cal Bb8d7,Bd7f8,Bf8g6,Bg6f4][%mdl 32]} 20. b4 {[%emt 0:00:00] Against Nc5} (20. Nxe7+ $142 Rxe7 21. O-O) 20... Nf8 {[%emt 0:00:00]} (20... Bxg5 21. Rg1 Bf6 22. Qd3 $16 (22. Nd6 Qa7 $16)) 21. O-O {[%emt 0:00:00]} Ng6 {[%emt 0:00:00]} 22. Qd2 {[%emt 0:00:00]} (22. Nxe7+ $6 Qxe7 23. Qd2 Nf4 $11) (22. Rc6 $1 $16) 22... Nf4 $14 {[%emt 0:00:00]} 23. h4 {[%emt 0:00:00]} b5 {[%emt 0:00:00]} ({Black should play} 23... Bf8 $1 $11) 24. Bg4 {[%emt 0:00:00] next Rxf4 is good for White. Active counter play!} Bf8 $1 {[%emt 0:00:01][%cal Oa6a5]} 25. Rc6 {[%emt 0:00:00]} Rad8 $2 {[%emt 0:01:45]} (25... a5 $11 {and Black is okay.}) 26. Rfc1 $2 {[%emt 0:00:00]} (26. Qc3 $18) 26... g6 $1 $11 {[%emt 0:02:01] Inhibits h5.} 27. Ne3 {[%emt 0:00:00]} h5 {[%emt 0:01:20]} 28. Bf3 {[%emt 0:02:32]} (28. gxh6 $11 Qa7 29. R1c5 $1) 28... Bd6 {[%emt 0:00:06]} (28... Qd7 $15 29. R1c2 (29. Rxa6 Qh3 $17) 29... Qh3) 29. Nd1 {[%emt 0:01:37]} (29. Ng2 $11) 29... Qd7 {[%emt 0:02:33]} (29... a5 $1 $17) 30. Nf2 {[%emt 0:00:30]} Qa7 {[%emt 0:00:04][%cal Oa6a5]} 31. Kh1 {[%emt 0:01:01]} (31. R1c2 $11 {remains equal.}) 31... Rf8 {[%emt 0:03:40]} (31... a5 $1 $17 {[%cal Ra5b4] White must now prevent ...axb4.} 32. bxa5 Bxa3) 32. Rg1 {[%emt 0:00:55]} (32. R1c2 $11) 32... Qd7 {[%emt 0:00:00]} (32... a5 $15 {should be considered.} 33. bxa5 Bc7) 33. Rg3 {[%emt 0:00:33]} (33. Rgc1 $11) 33... Bb8 {[%emt 0:00:00]} (33... a5 $15) 34. Qc2 {[%emt 0:01:02]} (34. Rxa6 $11 Ba7 35. Bd1 (35. Nd3 Nxd3 36. Qxd3 Bf2 $17)) 34... Qa7 {[%emt 0:00:00]} 35. Bg2 {[%emt 0:00:41]} Bd6 {[%emt 0:00:23]} 36. Nd3 {[%emt 0:00:18]} a5 {[%emt 0:00:47]} 37. Nxf4 {[%emt 0:00:50]} (37. bxa5 $15 Qxa5 38. Kh2) 37... exf4 $17 {[%emt 0:00:02]} 38. Rb3 {[%emt 0:00:16]} (38. Rf3 $17 {was worth a try.}) 38... axb4 $19 {[%emt 0:02:18]} 39. axb4 {[%emt 0:00:03]} Qa1+ {[%emt 0:00:00]} 40. Rb1 {[%emt 0:00:00]} Qe5 {[%emt 0:00:00][%cal Of4f3]} 41. Bf3 {[%emt 0:06:23]} Ra8 $1 {[%emt 0:02:45]} 42. Qc3 {[%emt 0:19:48] Inhibits Ra3.} Ra2 {[%emt 0:10:26]} (42... Qe7 $1 $17 {Threatens to win with ...Ra2.} 43. Qd3 Rfb8) 43. Qxe5 $1 $15 {[%emt 0:03:20]} Bxe5 {[%emt 0:00:01]} 44. d6 {[%emt 0:00:37]} Rd8 {[%emt 0:05:04]} 45. Rd1 {[%emt 0:00:32]} Rf2 {[%emt 0:02:58]} 46. Rd3 {[%emt 0:01:18]} Kf8 {[%emt 0:00:17]} 47. Kg1 {[%emt 0:01:15]} Rxf3 {[%emt 0:04:26]} 48. Rxf3 $16 {[%emt 0:00:06]} Bxd6 $11 {[%emt 0:00:03][%mdl 4096] Endgame [#] KRR-KRB} 49. Rb3 $1 {[%emt 0:01:59]} Be5 {[%emt 0:00:06] [#]} 50. Kf1 $1 {[%emt 0:00:30] Strongly threatening Rc5.} Rd4 {[%emt 0:01:33]} (50... Rd1+ $16 {was necessary.} 51. Ke2 Rh1) 51. Rc5 $18 {[%emt 0:00:28][%csl LRb5,LRe5]} Rxe4 {[%emt 0:00:26]} 52. Rxb5 {[%emt 0:00:01]} Ke7 {[%emt 0:00:25]} 53. Ra5 {[%emt 0:01:16] aiming for b5.} Bd4 {[%emt 0:05:08]} 54. b5 {[%emt 0:00:32]} Re5 $2 (54... f3 55. Rxf3 Rxh4) 55. Ra4 {[%emt 0:01:07]} Bb6 {[%emt 0:04:19]} 56. Rxf4 {[%emt 0:00:00]} Re6 57. Rbf3 {[%emt 0:01:00]} f5 {[%emt 0:01:33]} 58. gxf6+ {[%emt 0:00:30]} Kf7 59. Rd3 {[%emt 0:00:00] Threatening mate with Rd7+.} Re8 {[%emt 0:00:00]} 60. Rd7+ {[%emt 0:00:00]} Ke6 {[%emt 0:00:00]} 61. Rb7 {[%emt 0:00:00]} Kd5 {[%emt 0:02:00] What a fight!  Weighted Error Value: White=0.22 (precise) /Black=0.41} 1-0

[Event "55th Iranian-ch Men Final 2022"]
[Site "Iran"]
[Date "2022.06.18"]
[Round "5.2"]
[White "Omidi, Arya"]
[Black "Poormosavi, Seyed Kian"]
[Result "1/2-1/2"]
[ECO "B12"]
[WhiteElo "2321"]
[BlackElo "2358"]
[Annotator "TA"]
[PlyCount "62"]
[EventDate "2022.06.15"]
[EventType "tourn"]
[EventCountry "IRI"]
[SourceTitle "playchess.com"]
[Source "ChessBase"]
[SourceQuality "1"]
[TimeControl "40/5400+30:1800+30"]

{[%evp 9,62,27,19,25,22,16,29,35,40,48,47,29,15,27,21,21,27,28,30,24,44,17,23,6,73,0,0,0,0,0,0,0,0,0,0,0,0,0,0,0,0,0,46,4,112,135,127,123,127,83,333,323,318,270,329]} 1. e4 {[%emt 0:00:02]} c6 {[%emt 0:00:16]} 2. d4 {[%emt 0:00:06]} d5 {[%emt 0:00:09]} 3. e5 {[%emt 0:00:14]} c5 {[%emt 0:00:11]} 4. dxc5 {[%emt 0:00:06]} e6 {[%emt 0:00:11]} 5. Nf3 {[%emt 0:00:08]} Bxc5 {[%emt 0:00:11]} 6. Bd3 {[%emt 0:00:06] B12: Caro-Kann: Advance Variation.} Nc6 {[%emt 0:02:20]} 7. a3 {[%emt 0:00:05]} f6 {[%emt 0:00:55]} 8. b4 {[%emt 0:02:32] White has an edge.} Be7 $1 {[%emt 0:00:15][%mdl 4] is currently scoring better than 8...Bb6.} 9. Bb2 {[%emt 0:01:51]} Nh6 {[%emt 0:03:23]} 10. O-O {[%emt 0:02:07]} Nf7 {[%emt 0:01:38][%cal Rf7e5]} 11. exf6 {[%emt 0:00:37]} Bxf6 {[%emt 0:01:39]} 12. Bxf6 {[%emt 0:00:05]} Qxf6 {[%emt 0:01:24]} 13. Nbd2 {[%emt 0:00:07]} O-O {[%emt 0:03:57]} 14. c4 {[%emt 0:01:13]} Nfe5 {[%emt 0:04:09]} 15. Nxe5 {[%emt 0:00:32]} Nxe5 {[%emt 0:00:26] [#]} 16. Qc2 $146 {[%emt 0:02:18]} ({Predecessor:} 16. Be2 Kh8 17. Rc1 Bd7 18. Nf3 Ng6 19. Nd4 Nf4 20. Bf3 Qg6 21. Kh1 Rad8 22. Rc3 {½-½ (30) Warmerdam,M (2501)-Bauer,C (2624) Budva 2019}) 16... Qh4 {[%emt 0:10:04]} (16... Kh8 $11 {keeps the balance.}) 17. f4 {[%emt 0:12:57]} (17. Rae1 $16 Nxd3 18. Qxd3) 17... Rxf4 $11 {[%emt 0:11:15]} 18. Bxh7+ {[%emt 0:04:19]} Kh8 {[%emt 0:00:13] Hoping for ...Rf6.} 19. g3 {[%emt 0:13:40]} Rxf1+ {[%emt 0:06:29]} 20. Rxf1 {[%emt 0:00:06][%cal Rf1f8] [#] Chess con chili.} Qd4+ {[%emt 0:01:32]} 21. Kg2 {[%emt 0:00:33][%cal Rf1f8]} Bd7 {[%emt 0:00:51][%cal Od7a4]} 22. Rf4 {[%emt 0:01:20]} Qe3 {[%emt 0:03:50][%cal Od7a4]} 23. Nf1 $1 {[%emt 0:06:02]} Qe1 {[%emt 0:01:43]} (23... Qxa3 $2 24. Qe2 Nf7 25. Rxf7 $18) 24. cxd5 {[%emt 0:05:33]} exd5 {[%emt 0:07:58]} 25. Bg6 {[%emt 0:12:51][%cal Bh7g6,Bg6f7,Bf7d5][%mdl 32] aiming for Rh4+.} Ng4 {[%emt 0:23:19]} (25... b6 $11) 26. Qc5 $40 {[%emt 0:03:34][%mdl 128] Rf8+ would kill now. White mounts an attack.} Qe2+ {[%emt 0:00:32]} (26... Qe6 $1 $11 27. Rf8+ Rxf8 28. Qxf8+ Qg8) 27. Kg1 $16 {[%emt 0:01:08] White threatens Rf8+ and mate.} Nf6 {[%emt 0:06:37] [#]} 28. Bf7 $1 {[%emt 0:01:57] And now Rh4+ would win.} Bg4 {[%emt 0:03:39]} 29. Bxd5 {[%emt 0:08:41]} Rd8 $2 {[%emt 0:04:46]} (29... Nxd5 $16 30. Qxd5 Rc8) 30. Bxb7 $18 {[%emt 0:01:14]} Rd1 {[%emt 0:00:49]} 31. Bg2 {[%emt 0:01:20] Against Bh3} ({Don't take} 31. Qxa7 Bh3 32. Qa8+ Kh7) 31... a6 {[%emt 0:00:40][%mdl 32768] Weighted Error Value: White=0.08 (flawless) /Black=0.37. An unexpected result.} 1/2-1/2